Cogmind - Beta 13 @@@ ROGUE MODE // 2024.05.01 @ 12:34:31 Player: Waste Result: Destroyed by V1-6XT(R) with Subdweller Beam Cannon Performance ------------- Evolutions (0) 0 Regions Visited (3) 600 Robots Destroyed (17) 85 Value Destroyed (489) 489 Prototype IDs (11) 220 Alien Tech Used (0) 0 Bonus (0) 0 TOTAL SCORE: 1394 Bonus ------- None Cogmind --------- Core Integrity 0/250 Matter 265/300 Energy 170/170 System Corruption 0% Temperature Cool (9) Movement Treading (260) Ox1 Location -10/Subcaves Parts ------- > --- POWER (1) -------- Makeshift Power Source > --- PROPULSION (2) --- Spiked Treads Subdweller Monowheel > --- UTILITY (2) ------ Scrap Shield > --- WEAPON (2) ------- Subdweller Machine Gun Battle Cannon > --- INVENTORY (5) ---- Subdweller Power Source Power Bank Subdweller Beam Cannon Battle Rifle Peak State ------------ > --- POWER ------------ Makeshift Power Source > --- PROPULSION ------- Spiked Treads Subdweller Monowheel > --- UTILITY ---------- Scrap Shield > --- WEAPON ----------- Subdweller Machine Gun Battle Cannon > --- INVENTORY -------- Subdweller Power Source Power Bank Subdweller Beam Cannon Battle Rifle [Rating: 17] Favorites ----------- Power Ion Engine Engine Ion Engine Propulsion Subdweller Monowheel Treads Light Treads Leg Aluminum Leg Wheel Subdweller Monowheel Utility Scrap Shield Device Disposable Heat Sink Storage Small Storage Unit Protection Scrap Shield Weapon Improved Medium Laser Energy Gun Improved Medium Laser Ballistic Gun Subdweller Machine Gun Ballistic Cannon Battle Cannon Build | -11 -10 -10 -10 ------- Run | Yrd Mat Min Sub Slots Evolved . | . . . . Power . | . . . . Propulsion . | . . . . Utility . | . . . . Weapon . | . . . . Parts Attached 18 | . 3 . 15 Power 2 | . . . 2 Engine 2 | . . . 2 Core . | . . . . Reactor . | . . . . Propulsion 5 | . . . 5 Treads 3 | . . . 3 Leg . | . . . . Wheel 2 | . . . 2 Hover . | . . . . Flight . | . . . . Utility 2 | . 1 . 1 Device 1 | . 1 . . Storage . | . . . . Processor . | . . . . Hackware . | . . . . Protection 1 | . . . 1 Artifact . | . . . . Weapon 9 | . 2 . 7 Energy Gun 5 | . 2 . 3 Energy Cannon . | . . . . Ballistic Gun 3 | . . . 3 Ballistic Cannon 1 | . . . 1 Launcher . | . . . . Special Weapon . | . . . . Impact Weapon . | . . . . Slashing Weapon . | . . . . Piercing Weapon . | . . . . Special Melee Weapon . | . . . . Unidentified Prototypes 1 | . 1 . . Parts Lost 6 | . . . 6 Power 2 | . . . 2 Propulsion 3 | . . . 3 Utility . | . . . . Weapon 1 | . . . 1 Highest Loss Streak 4 | . . . 4 To Critical Strikes . | . . . . Average Slot Usage (%) 88 | . 86 100 87 Engine 13 | . 14 14 13 Treads 13 | . . . 15 Leg 3 | . 28 28 . Wheel 10 | . . . 11 Device 3 | . 1 14 2 Storage 3 | . 14 14 2 Protection 10 | . . . 11 Energy Gun 10 | . 16 28 9 Ballistic Gun 11 | . 11 . 12 Ballistic Cannon 5 | . . . 6 Naked Turns . | . . . . Heaviest Build 30 | 11 15 15 30 Greatest Support 40 | 20 20 20 40 Greatest Overweight (x) 1 | . . . 1 Average Overweight (x) . | . . . . Largest Inventory Capacity 8 | . 8 8 8 Average Capacity 5 | . 8 8 5 Most Carried 8 | . 8 8 8 Average Carried 5 | . 7 8 5 Final Capacity 8 | 8 8 8 5 Final Carried 8 | 6 8 8 4 Class Distribution -------------------- 59% | Subdweller-Mutant 40% | Mutant Dominant Class ---------------- Mutant | -10/Materials Mutant | -10/Mines Subdweller-Mutant | -10/Subcaves Resources | -11 -10 -10 -10 ----------- Run | Yrd Mat Min Sub Matter Collected 777 | 200 19 28 530 Remotely . | . . . . Salvage Created 589 | . 213 48 328 Parts 28 | . 13 5 10 Haulers Intercepted . | . . . . Recyclers Shooed 1 | . 1 . . Parts Field Recycled . | . . . . Retrieved Matter . | . . . . Parts Self-Destructed 8 | . . . 8 Prevented . | . . . . Kills | -11 -10 -10 -10 ------- Run | Yrd Mat Min Sub Combat Hostiles Destroyed 15 | . 3 3 9 Guns 13 | . 3 3 7 Cannons 2 | . . . 2 Classes Destroyed 6 | . 3 1 2 Recycler 1 | . 1 . . Watcher 1 | . 1 . . Swarmer 4 | . . 3 1 Grunt 3 | . 3 . . Sentry 1 | . . . 1 Subdweller 7 | . . . 7 Best Kill Streak 3 | . 3 3 2 Combat Bots Only 3 | . 3 3 2 Max Kills in Single Turn 1 | . 1 1 1 Gunslinging . | . . . . Exploded . | . . . . Melee . | . . . . Uniques/NPCs Destroyed . | . . . . Combat | -11 -10 -10 -10 -------- Run | Yrd Mat Min Sub Hostile Shots Fired 98 | . 15 9 74 Missed 26 | . 4 3 19 Damage Taken 1410 | . 123 47 1240 Core 268 | . 78 6 184 Absorbed by Shields . | . . . . Core Remaining (%) 100 | 100 . . . Volleys Fired 178 | . 20 4 154 Largest 2 | . 2 2 2 Hottest 112 | . 106 112 112 Shots Fired 248 | . 40 8 200 Gun 229 | . 40 8 181 Cannon 19 | . . . 19 Launcher . | . . . . Special . | . . . . Kinetic 157 | . 19 . 138 Thermal 91 | . 21 8 62 Explosive . | . . . . Electromagnetic . | . . . . Robot Hit Streak 15 | . 7 2 15 Robot Miss Streak 3 | . 3 3 2 Penetration Max . | . . . . Secondary Targets 2 | . . 2 . Max Gunslinging Chain 1 | . . 1 . Shots Hit Robots 106 | . 25 4 77 Core Hits 29 | . 9 3 17 Critical Kills . | . . . . Critical Parts Destroyed . | . . . . Critical Strikes 4 | . . . 4 Burn 4 | . . . 4 Melee Attacks . | . . . . Impact . | . . . . Slashing . | . . . . Piercing . | . . . . Sneak Attacks . | . . . . Combat Hostiles . | . . . . Follow-up Attacks . | . . . . Damage Inflicted 1749 | . 266 67 1416 Guns 1487 | . 266 67 1154 Cannons 262 | . . . 262 Explosions . | . . . . Melee . | . . . . Ramming . | . . . . Kinetic 614 | . 83 . 531 Thermal 1135 | . 183 67 885 Explosive . | . . . . Electromagnetic . | . . . . Impact . | . . . . Slashing . | . . . . Piercing . | . . . . Highest Corruption . | . . . . Average Corruption . | . . . . Corruption Purged . | . . . . Corruption Blocked . | . . . . Overload Shots . | . . . . Overflow Damage . | . . . . Projectiles . | . . . . Explosions . | . . . . Melee . | . . . . Knockbacks 1 | . . . 1 Impact . | . . . . Kinetic 1 | . . . 1 Secondary . | . . . . Self-Inflicted Damage . | . . . . Shots . | . . . . Rammed 1 | . . . 1 Targets Rammed 1 | . . . 1 Kicked . | . . . . Crushed . | . . . . Highest Temperature 274 | . 274 187 18 Average Temperature 106 | . 133 92 8 Received Heat Transfer 258 | . 66 . 192 Siege Activations . | . . . . Robots Corrupted . | . . . . Combat Hostiles . | . . . . Parts Fried . | . . . . Impact Corruptions . | . . . . Robots Melted . | . . . . Combat Hostiles . | . . . . Parts Melted 7 | . . 2 5 Heat Transferred 2886 | . 518 148 2220 Parts Sabotaged . | . . . . Parts Stolen . | . . . . Parts Stripped . | . . . . Power Chain Reactions . | . . . . Alert | -11 -10 -10 -10 ------- Run | Yrd Mat Min Sub Peak Influence 111 | . 107 111 . Initial 41 | . . 41 . Average 67 | . 43 92 . Maximum Alert Level . | . . . . Low Security (%) 100 | . 100 100 . Level 1 . | . . . . Level 2 . | . . . . Level 3 . | . . . . Level 4 . | . . . . Level 5 . | . . . . High Security . | . . . . Max Security . | . . . . Squads Dispatched 2 | . 2 . . Investigation 1 | . 1 . . Extermination . | . . . . Reinforcement 1 | . 1 . . Assault . | . . . . Garrison . | . . . . Intercept . | . . . . Searches Triggered . | . . . . Construction Impeded . | . . . . Haulers Reinforced . | . . . . Active Scanning Responses . | . . . . Cargo Convoy Interrupts . | . . . . Stealth | -11 -10 -10 -10 --------- Run | Yrd Mat Min Sub Distress Signals . | . . . . Communications Jammed . | . . . . Distress Signals . | . . . . Times Spotted 21 | . 7 3 11 Peak Tracking Total 3 | . 2 3 2 Tactical Retreats . | . . . . Traps | -11 -10 -10 -10 ------- Run | Yrd Mat Min Sub Traps Triggered 2 | . 1 . 1 Indirectly . | . . . . Trap Hack Attempts . | . . . . Triggered . | . . . . Disarmed . | . . . . Reprogrammed . | . . . . Reused . | . . . . Traps Extracted . | . . . . Installed . | . . . . Triggered . | . . . . Machines | -11 -10 -10 -10 ---------- Run | Yrd Mat Min Sub Machines Disabled 1 | . . . 1 Max in Single Turn 1 | . . . 1 Machines Repaired . | . . . . Machines Dismantled . | . . . . Machines Sabotaged . | . . . . Overloaded Fab Kills . | . . . . Hacking | -11 -10 -10 -10 --------- Run | Yrd Mat Min Sub Machines Accessed 1 | . . . 1 Terminals . | . . . . Fabricators . | . . . . Repair Stations . | . . . . Recycling Units . | . . . . Scanalyzers . | . . . . Garrison Access . | . . . . Total Hacks 1 | . . . 1 Successful 1 | . . . 1 Failed . | . . . . Catastrophic . | . . . . Database Lockouts . | . . . . Manual . | . . . . Terminals . | . . . . Fabricators . | . . . . Repair Stations . | . . . . Recycling Units . | . . . . Scanalyzers . | . . . . Garrison Access . | . . . . Terminal Hacks 1 | . . . 1 Derelict Proto ID Bank 1 | . . . 1 Fabricator Hacks . | . . . . Repair Station Hacks . | . . . . Recycling Unit Hacks . | . . . . Scanalyzer . | . . . . Garrison Access Hacks . | . . . . Unauthorized Hacks . | . . . . Terminals . | . . . . Fabricators . | . . . . Repair Stations . | . . . . Recycling Units . | . . . . Scanalyzers . | . . . . Garrison Access . | . . . . Data Cores Recovered . | . . . . Used . | . . . . Hacking Detections . | . . . . Full Trace Events . | . . . . Feedback Events . | . . . . Feedback Blocked . | . . . . Robot Schematics Acquired . | . . . . Robots Built . | . . . . Authchips . | . . . . Time . | . . . . Total Robot Build Rating . | . . . . Part Schematics Acquired . | . . . . Parts Built . | . . . . Authchips . | . . . . Time . | . . . . Total Part Build Rating . | . . . . Parts Repaired . | . . . . Time . | . . . . Parts Recycled . | . . . . Recycled Matter . | . . . . Retrieved Matter . | . . . . Retrieved Components . | . . . . Parts Scanalyzed . | . . . . Part Schematics Acquired . | . . . . Parts Damaged . | . . . . Bothacking | -11 -10 -10 -10 ------------ Run | Yrd Mat Min Sub Used RIF Installer . | . . . . Robots Hacked . | . . . . Non-combat . | . . . . Combat . | . . . . Robot Hacks Applied . | . . . . Relay Couplers Released . | . . . . Fabnet Peak Effective % . | . . . . Robots Rewired . | . . . . Allies Hacked . | . . . . Hacks Repelled . | . . . . Allies | -11 -10 -10 -10 -------- Run | Yrd Mat Min Sub Total Allies . | . . . . Largest Group . | . . . . Highest-Rated Group . | . . . . Highest-Rated Ally . | . . . . Total Orders . | . . . . Ally Attacks . | . . . . Total Damage . | . . . . Kills . | . . . . Allies Corrupted . | . . . . Allies Melted . | . . . . Intel | -11 -10 -10 -10 ------- Run | Yrd Mat Min Sub Robot Analysis Total . | . . . . Derelict Logs Recovered 2 | . . . 2 Drone Launches . | . . . . Drone Recoveries . | . . . . Exploration | -11 -10 -10 -10 ------------- Run | Yrd Mat Min Sub Turns Passed 4083 | . 252 242 3589 Spaces Moved 1942 | 1 139 70 1732 Core . | . . . . Treads 1045 | . . . 1045 Legs 232 | 1 139 70 22 Wheels 665 | . . . 665 Hover . | . . . . Flight . | . . . . Fastest Speed 120 | 120 120 120 120 Average Speed 175 | 120 120 120 182 Slowest Speed 260 | 120 120 120 260 Overloaded Moves . | . . . . Propulsion Burnouts . | . . . . Robots Hopped . | . . . . Cave-ins Triggered . | . . . . Exploration Rate (%) 30 | 2 25 10 83 Regions Visited 3 Branch Regions 2 Pre-discovered Areas 2 | . . . 2 Known Exits Taken . | . . . . Unknown Exits Taken 3 | 1 1 1 . Scrap Searched 5 | . . . 5 Spaces Dug . | . . . . Terrain Destroyed 1 | . . . 1 Melee . | . . . . Projectile 1 | . . . 1 AOE . | . . . . Terrain Rammed . | . . . . Walls Destroyed . | . . . . Machines Disabled . | . . . . Actions | -11 -10 -10 -10 --------- Run | Yrd Mat Min Sub Total 2384 | . 191 220 1973 Wait 211 | . 14 147 50 Move 1939 | . 138 69 1732 Hop . | . . . . Pick Up 13 | . 8 . 5 Fast Attach 6 | . 2 . 4 Attach 6 | . . . 6 Detach 2 | . . . 2 Swap 6 | . 1 . 5 Drop 17 | . 8 . 9 Fire 178 | . 20 4 154 Melee . | . . . . Ram . | . . . . Kick . | . . . . Crush 1 | . . . 1 Escape Stasis . | . . . . Rewire . | . . . . Trap . | . . . . Miscellaneous 5 | . . . 5 Route ------- -11/Scrapyard -10/Materials -10/Mines -10/Subcaves History --------- Turn | Location | Event 1 | -11/Scrapyard | Discovered new exit (range 0) 1 | -11/Scrapyard | Entered Materials 110 | -10/Materials | Discovered new exit (range 6) 253 | -10/Materials | Entered Mines 301 | -10/Mines | Met a Derelict bent on vengeance 318 | -10/Mines | Build established: Mutant 476 | -10/Mines | Discovered new exit (range 5) 495 | -10/Mines | Entered Subcaves 562 | -10/Subcaves | Core integrity fell below 50% 598 | -10/Subcaves | Lost 4 parts (1p2n1w) 598 | -10/Subcaves | Learned location of Recycling (-8) 630 | -10/Subcaves | Core integrity fell below 20% 1238 | -10/Subcaves | Shifting Twisted Machinery released Flamer 1399 | -10/Subcaves | Shifting Twisted Machinery released Sub. Optics 1957 | -10/Subcaves | Build established: Subdweller-Mutant 2003 | -10/Subcaves | A swath of the cavern ceiling suddenly collapsed 2716 | -10/Subcaves | Learned location of Zion (-6) 2773 | -10/Subcaves | Visited 4L-MR0's lab 2805 | -10/Subcaves | Found Power Bank 3948 | -10/Subcaves | A swath of the cavern ceiling suddenly collapsed 4084 | -10/Subcaves | Destroyed by V1-6XT(R) with Subdweller Beam Cannon Last Messages --------------- 02920_ Found Hvy. Riot Gun. 02920_ Found 35 Matter. 02921_ Acquired 35 matter. 02921_ Searching scrap... 02921_ Found Battle Cannon. 02921_ Found Sub. Beam Cannon. 02921_ Found 22 Matter. 02922_ Acquired 22 matter. 02971_ Acquired 55 matter. 02984_ Acquired 7 matter. 03215_ Y-45 Defender destroyed. 03220_ Acquired 7 matter. 03631_ Ion Engine destroyed. 03648_ 1H-BKR(R) destroyed. 03669_ Scrap Shield Fragment affixed to Scrap Shield (+47). 03670_ Acquired 30 matter. 03675_ Acquired 13 matter. 03777_ Acquired 2 matter. A swath of the cavern ceiling suddenly collapses. 04077_ V1-6XT(R) knocked back. Map ----- +----------------------------------------------------+ | # ##???### ## # # #######??????????# | | ### #??##?######### ### ############# | | ??# ### #????????## ##?# #### ## # ## | | ??## #????????# #?## ##?# | | ??## #########?# #?# ##?????# | | ?## ### # ### ### ##???##?# # ## | | ?# # ## #???## ## ########## | | ?# ## ## ##??# ##????????? | | ?# ### # ##%"## ##?# #???#####?? | | ?## #### # ### ### ##### ##### # ##? | | #?# ## # #?# ### #??## ## | | #?# # #?# #?## #???## | | #?# #####?## #### #????## ## | | ### ##???# ## #????## ### #### | | ## #???## ### #????# ##?## #??? | | ##### #?### # #?####= #???## #??? | | #???## ##?# ## #?# #????# #??? | | #????## #??# ## #### #????# #??? | | ##????## #??# ### # # #??????#??? | | #?????# ##??# ## #????????? | | #?????######???# % ### ???????? | | ####???????##???# R ## #?# ####??????? | | #### ##????# ##??## ###### #? ?????????? | | ### #???# #???# #???# #?????????? | | ## #### #?### ##??# ## ?????????? | | ### ## ## ### @ ### ##?#?????????? | | #?? #?## ## ????????????? | | ###? #??# # ???????????? | | " #?# #??## ### # ??????????? | | ###?# #??# ## #??## ?????????? | | #???# #??## ## #???? ????????? | | ###?# #???# #?##???? ???????? | | " ### ##??## #???????? ????????? | | " ## ##??# #????????## ?????????? | | # #??# ##???????????????????? | | # #### ##??## #???????????????????? | | # ##???????## #???????????????????? | | # ##### ####????# ##???????????????????? | | ##???# ###### #????????????????????? | | #????# ### #####????????????????????? | | "##????# #?### ##????????????????????????? | | #?????## ##???##### ##?????????????????????????? | | ##?????###????????####??????????????????????????? | | #??????????????????????????????????????????????? | | #??????????????????????????????????????????????? | | # #??????????????????????????????????????????????? | | ?##??????????????????????????????????????????????? | | ?????????????????????????????????????????????????? | | ?????????????????????????????????????????????????? | | ?????????????????????????????????????????????????? | +----------------------------------------------------+ Best States ------------- Heat Dissipation 25 Coolant Potential 50 Energy Generation 15 Energy Capacity 250 Matter Stores 300 Matter Capacity 300 Sight Range 16 Terrain Scan Density 10 Armor Coverage 800 Evasion (%) 55 Recoil Reduction 2 Item Schematics ----------------- None Robot Schematics ------------------ None Fabricated ------------ Nothing Alien Tech Used ----------------- None Achievements -------------- None Challenges ------------ None Game ------ Seed MicrowarpTerrainPerforator Manual? 0 Play Time 00:15:04 Cumulative 204.6 hours Start 2024.05.01 @ 12:22:22 End 2024.05.01 @ 12:34:31 Sessions 1 Manual Loads 0 Difficulty Rogue Special Mode None Game No. 269 Rogue 269 Adventurer 0 Explorer 0 Win Type - Total 6 Types 2/1/0/1/1/0/0/1/0 Lore% 69 Gallery% 78 Achievement% 67 Wizard Run 0 Options --------- Layout 0 ASCII 0 Keyboard 0 Movement Numpad Keybinds 0 Fullscreen 1 Font 18/SmallcapsGlow Map View 76x50 Zoom Use 0% Tactical HUD 1 Map Filters NONE Filters NONE Steam 1 RUN: 05c8c73f-5269-4755-a7cb-758cec0693a7